bitfinex-derivatives/quotes_SOLF0:USTF0_20250909
["timestamp","ask_amount","ask_price","bid_price","bid_amount"]
[1757402932383,99.54794005,219.5,219.37,3.79595351]
[1757402932582,114.16,219.49,219.38,3.79595351]
[1757402932784,114.16,219.49,219.34,2.96794005]
[1757402932985,114.16,219.49,219.35,3.79767306]
[1757402933185,114.16,219.49,219.36,3.79767306]
[1757402933491,114.16,219.49,219.37,3.79767306]
[1757402933788,114.16,219.49,219.38,3.79767306]
[1757402933980,2.96794005,219.5,219.39,3.79767306]
[1757402934185,114.16,219.49,219.34,2.96794005]
[1757402934386,114.16,219.49,219.35,3.79946436]
[1757402934586,114.16,219.49,219.36,3.79946436]
[1757402934783,2.96794005,219.52,219.37,3.79946436]
[1757402934989,114.16,219.5,219.38,3.79946436]
[1757402935189,2.96794005,219.52,219.39,3.79946436]
[1757402935389,27.96,219.53,219.4,3.79946436]
[1757402935689,2.96794005,219.52,219.41,3.79946436]
[1757402935888,2.96794005,219.52,219.42,3.79946436]
[1757402936096,2.96794005,219.52,219.37,2.96794005]
[1757402936294,2.96794005,219.52,219.38,3.80055306]
[1757402936482,2.96794005,219.52,219.39,3.80055306]
[1757402936682,2.96794005,219.52,219.4,3.80055306]
[1757402936991,2.96794005,219.52,219.41,3.80055306]
[1757402937192,2.96794005,219.52,219.42,3.80055306]
[1757402937384,2.96794005,219.52,219.36,3.82602573]
[1757402937585,2.96794005,219.52,219.37,6.76983591]
[1757402937785,2.96794005,219.52,219.38,3.80189586]
[1757402937986,2.96794005,219.52,219.39,3.80189586]
[1757402938183,2.96794005,219.52,219.4,3.80189586]
[1757402938388,2.96794005,219.52,219.41,3.80189586]
[1757402938696,2.96794005,219.52,219.42,3.80189586]
[1757402938885,2.96794005,219.52,219.43,3.80189586]
[1757402939085,2.96794005,219.52,219.37,2.96794005]
[1757402939288,2.96794005,219.52,219.38,3.80675061]
[1757402939488,2.96794005,219.52,219.39,3.80675061]
[1757402939686,2.96794005,219.52,219.4,3.80675061]
[1757402939885,2.96794005,219.52,219.41,3.80675061]
[1757402940089,2.96794005,219.52,219.42,3.80675061]
[1757402940290,2.96794005,219.52,219.43,3.80675061]
[1757402940489,2.96794005,219.52,219.37,6.79396578]
[1757402940794,2.96794005,219.52,219.38,3.80652906]
[1757402940985,2.96794005,219.52,219.39,3.80652906]
[1757402941193,2.96794005,219.49,219.4,3.80652906]
[1757402941392,2.96794005,219.49,219.41,3.80652906]
[1757402941690,2.96794005,219.49,219.35,3.82821353]
[1757402941892,2.96794005,219.49,219.36,3.80779378]
[1757402942090,2.96794005,219.49,219.37,3.80779378]
[1757402942288,2.96794005,219.49,219.38,3.80779378]
[1757402942483,2.96794005,219.49,219.39,3.80779378]
[1757402942683,2.96794005,219.49,219.4,3.80779378]
[1757402942892,2.96794005,219.49,219.41,3.80779378]
[1757402943092,2.96794005,219.49,219.42,3.80779378]
[1757402943295,2.96794005,219.49,219.35,3.82821353]
[1757402943496,2.96794005,219.49,219.36,3.81033283]
[1757402943794,2.96794005,219.49,219.37,3.81033283]
[1757402943994,2.96794005,219.49,219.38,3.81033283]
[1757402944187,2.96794005,219.49,219.39,3.81033283]
[1757402944389,2.96794005,219.49,219.4,3.81033283]
[1757402944588,2.96794005,219.49,219.41,3.81033283]
[1757402944888,2.96794005,219.49,219.42,3.81033283]
[1757402945099,2.96794005,219.49,219.36,3.82821353]
[1757402945391,2.96794005,219.49,219.37,3.81174535]
[1757402945592,2.96794005,219.49,219.38,3.81174535]
[1757402945784,2.96794005,219.49,219.39,3.81174535]
[1757402945989,2.96794005,219.49,219.4,3.81174535]
[1757402946188,2.96794005,219.49,219.34,3.82821353]
[1757402946394,2.96794005,219.49,219.35,3.81221682]
[1757402946591,2.96794005,219.49,219.36,3.81221682]
[1757402946794,2.96794005,219.49,219.37,3.81221682]
[1757402947092,2.96794005,219.49,219.38,3.81221682]
[1757402947293,2.96794005,219.49,219.39,3.81221682]
[1757402947593,2.96794005,219.49,219.4,3.81221682]
[1757402947898,2.96794005,219.49,219.41,3.81221682]
[1757402948195,2.96794005,219.49,219.34,3.82821353]
[1757402948385,2.96794005,219.49,219.35,3.81182518]
[1757402948583,2.96794005,219.49,219.36,3.81182518]
[1757402948783,2.96794005,219.52,219.37,3.81182518]
[1757402948989,309.36794005,219.56,219.39,2.96794005]
[1757402949196,423.48794005,219.56,219.41,3.82821353]
[1757402949492,423.48794005,219.56,219.42,3.81182518]
[1757402949686,423.48794005,219.56,219.43,3.81182518]
[1757402949891,420.52,219.56,219.44,3.81182518]
[1757402950090,423.48794005,219.56,219.45,3.81182518]
[1757402950395,422.420602,219.56,219.47,1.900602]
[1757402950587,422.420602,219.56,219.41,3.82821353]
[1757402950789,422.420602,219.56,219.46,1.900602]
[1757402951093,1.900602,219.54,219.47,3.80648021]
[1757402951289,1.900602,219.54,219.44,1.900602]
[1757402951494,1.900602,219.54,219.45,3.80666924]
[1757402951695,1.900602,219.54,219.46,3.80666924]
[1757402951894,1.900602,219.54,219.44,1.900602]
[1757402952091,1.900602,219.54,219.45,3.80667261]
[1757402952295,1.900602,219.54,219.46,3.80667261]
[1757402952497,1.900602,219.54,219.44,1.900602]
[1757402952700,1.900602,219.54,219.45,3.80652513]
[1757402952995,1.900602,219.54,219.46,3.80652513]
[1757402953199,1.900602,219.54,219.44,1.900602]
[1757402953393,1.900602,219.54,219.45,3.80629822]
[1757402953591,1.900602,219.54,219.46,3.80629822]
[1757402953797,1.900602,219.54,219.44,1.900602]
[1757402953998,1.900602,219.54,219.45,3.80628587]
[1757402954196,1.900602,219.54,219.46,3.80628587]
[1757402954397,1.900602,219.54,219.44,1.900602]
[1757402954594,1.900602,219.54,219.45,3.80622344]
[1757402954796,1.900602,219.54,219.46,3.80622344]
[1757402954991,1.900602,219.54,219.44,1.900602]
[1757402955191,1.900602,219.54,219.45,3.80569226]
[1757402955394,114.1,219.61,219.46,3.80569226]
[1757402955594,114.1,219.61,219.54,1.900602]
[1757402955897,114.1,219.61,219.52,1.900602]
[1757402956096,114.1,219.61,219.53,3.80173714]
[1757402956287,114.1,219.61,219.52,1.900602]
[1757402956492,1.900602,219.6,219.53,3.79965284]
[1757402956693,1.900602,219.6,219.51,1.900602]
[1757402956998,1.900602,219.6,219.45,3.82821353]
[1757402957193,114.1,219.61,219.49,1.900602]
[1757402957194,1.900602,219.58,219.49,1.900602]
[1757402957394,1.900602,219.58,219.5,3.80051172]
[1757402957698,1.900602,219.58,219.49,1.900602]
[1757402957898,1.900602,219.58,219.5,3.79963399]
[1757402958099,1.900602,219.58,219.51,3.79963399]
[1757402958300,1.900602,219.58,219.49,1.900602]
[1757402958597,1.900602,219.58,219.5,3.79786869]
[1757402958794,1.900602,219.58,219.51,3.79786869]
[1757402958993,1.900602,219.58,219.44,3.82821353]
[1757402959197,1.900602,219.58,219.5,1.900602]
[1757402959501,1.900602,219.58,219.51,3.79691273]
[1757402959702,1.900602,219.58,219.5,1.900602]
[1757402959894,1.900602,219.58,219.51,3.79687824]
[1757402960199,1.900602,219.58,219.5,1.900602]
[1757402960402,1.900602,219.6,219.51,3.79548408]
[1757402960699,306.34,219.76,219.58,1.900602]
[1757402960903,114.08,219.75,219.6,1.900602]
[1757402961097,1.900602,219.69,219.6,1.900602]
[1757402961296,48.86,219.68,219.6,1.900602]
[1757402962597,48.86,219.68,219.5,6.5397]
[1757402962901,48.86,219.68,219.51,3.78183848]
[1757402963199,48.86,219.68,219.6,1.900602]
[1757402963795,1.900602,219.67,219.58,1.900602]
[1757402964301,1.900602,219.67,219.47,7.92851353]
[1757402964504,1.900602,219.67,219.58,1.900602]
[1757402967598,1.900602,219.66,219.58,1.900602]
[1757402969003,1.900602,219.67,219.58,1.900602]
[1757402969906,1.900602,219.67,219.47,4.1004]
[1757402970106,50.760602,219.68,219.6,1.900602]
[1757402970403,85.480602,219.74,219.64,1.900602]
[1757402970704,85.480602,219.74,219.66,1.900602]
[1757402973407,306.34,219.76,219.66,1.900602]
[1757402973710,114.0,219.75,219.68,1.900602]
[1757402975810,114.0,219.75,219.57,5.8984]
[1757402975811,114.0,219.75,219.7,1.900602]
[1757402977408,114.0,219.75,219.71,1.900602]
[1757402978414,114.0,219.75,219.71,1.93126796]
[1757402978619,114.02883143,219.75,219.71,1.93126796]
[1757402979716,114.02883143,219.75,219.71,0.03066596]
[1757402980016,114.02883143,219.75,219.72,1.900602]
[1757402980815,114.02883143,219.75,219.71,0.03066596]
[1757402981012,114.02883143,219.75,219.71,1.93126796]
[1757402982111,114.02883143,219.75,219.71,0.03066596]
[1757402988716,114.02883143,219.75,219.71,1.93126796]
[1757402990117,0.02883143,219.75,219.71,1.93126796]
[1757402990309,0.02883143,219.75,219.73,1.900602]
[1757402991314,0.02883143,219.75,219.71,0.03066596]
[1757402991514,0.02883143,219.75,219.74,1.900602]
[1757402992017,0.02883143,219.75,219.72,1.900602]
[1757402994217,0.02883143,219.75,219.71,0.03066596]
[1757402994417,0.02883143,219.75,219.72,1.900602]
[1757402995617,0.02883143,219.75,219.71,0.03066596]
[1757402997521,0.02883143,219.75,219.72,1.900602]
[1757403000619,0.02883143,219.75,219.72,1.900602]
[1757403001018,0.02883143,219.75,219.71,0.03066596]
[1757403001621,0.02883143,219.75,219.72,1.900602]
[1757403002923,0.02883143,219.75,219.71,0.03066596]
[1757403003124,0.02883143,219.75,219.71,1.93126796]
[1757403004220,0.02883143,219.75,219.72,3.77023434]
[1757403004425,0.02883143,219.75,219.71,1.93126796]
[1757403006526,0.02883143,219.75,219.71,0.03066596]
[1757403008323,1.92943343,219.75,219.71,0.03066596]
[1757403009630,0.02883143,219.75,219.71,0.03066596]
[1757403016322,0.48883143,219.75,219.71,0.03066596]
[1757403016727,2.96411192,219.74,219.71,0.03066596]
[1757403017026,3.42411192,219.74,219.56,2.96411192]
[1757403017227,2.96411192,219.69,219.57,3.79437627]
[1757403017420,2.96411192,219.66,219.5,6.79232545]
[1757403017626,2.96411192,219.66,219.51,3.79487347]
[1757403017829,2.96411192,219.66,219.5,6.79232545]
[1757403017830,2.96411192,219.66,219.52,3.79487347]
[1757403018030,2.96411192,219.66,219.53,3.79487347]
[1757403018221,2.96411192,219.66,219.54,3.79487347]
[1757403018425,0.03491517,219.61,219.55,3.79487347]
[1757403018628,0.03491517,219.61,219.56,3.79487347]
[1757403018828,0.03491517,219.61,219.5,2.96411192]
[1757403019029,0.03491517,219.61,219.51,3.79253782]
[1757403019229,0.03491517,219.61,219.52,3.79253782]
[1757403019530,0.03491517,219.61,219.53,3.79253782]
[1757403019725,0.03491517,219.61,219.54,3.79253782]
[1757403019928,0.03491517,219.61,219.55,3.79253782]
[1757403020129,0.03491517,219.61,219.5,2.96411192]
[1757403020324,0.03491517,219.61,219.51,3.78822326]
[1757403020527,0.03491517,219.61,219.52,3.78822326]
[1757403020727,2.96411192,219.66,219.53,3.78822326]
[1757403020934,0.03223502,219.59,219.54,3.78822326]
[1757403021234,0.03223502,219.59,219.51,2.96411192]
[1757403021431,0.03223502,219.59,219.52,3.78621681]
[1757403021625,0.03223502,219.59,219.54,2.96411192]
[1757403021828,0.03223502,219.59,219.55,3.78621681]
[1757403022028,0.26,219.65,219.56,3.78621681]
[1757403022225,0.03180616,219.59,219.51,2.96411192]
[1757403022430,0.03180616,219.59,219.52,3.78395789]
[1757403022630,0.03180616,219.59,219.53,3.78395789]
[1757403022832,0.03180616,219.59,219.54,3.78395789]
[1757403023028,0.03180616,219.59,219.55,3.78395789]
[1757403023228,0.03180616,219.59,219.51,2.96411192]
[1757403023428,0.03180616,219.59,219.52,3.78262096]
[1757403023634,0.03180616,219.59,219.53,3.78262096]
[1757403023933,0.03180616,219.59,219.54,3.78262096]
[1757403024230,0.03180616,219.59,219.55,3.78262096]
[1757403024533,0.03180616,219.59,219.56,3.78262096]
[1757403024732,0.03180616,219.59,219.54,2.96411192]
[1757403024933,0.03180616,219.59,219.55,3.78135312]
[1757403025133,0.03180616,219.59,219.54,2.96411192]
[1757403025333,0.03180616,219.59,219.55,3.7807935]
[1757403025534,0.03180616,219.59,219.54,2.96411192]
[1757403025735,0.03180616,219.59,219.55,3.78061617]
[1757403025934,0.03180616,219.59,219.54,2.96411192]
[1757403026127,0.03180616,219.59,219.55,3.78036264]
[1757403026333,0.03180616,219.59,219.54,2.96411192]
[1757403026536,0.03180616,219.59,219.55,3.7796785]
[1757403026734,0.03180616,219.59,219.54,2.96411192]
[1757403026931,0.03180616,219.59,219.55,3.7796785]
[1757403027136,0.03180616,219.59,219.54,2.96411192]
[1757403027330,0.03180616,219.59,219.55,3.77950734]
[1757403027529,0.03180616,219.59,219.54,2.96411192]
[1757403027725,0.03180616,219.59,219.55,3.7790229]
[1757403027929,0.03180616,219.59,219.54,2.96411192]
[1757403028129,0.03180616,219.59,219.55,3.7790229]
[1757403028337,0.03180616,219.59,219.54,2.96411192]
[1757403028635,0.03180616,219.59,219.55,3.77841506]
[1757403028837,2.96411192,219.78,219.58,2.96411192]
[1757403029030,113.8,219.77,219.63,2.96411192]
[1757403029738,2.96411192,219.83,219.66,2.96411192]
[1757403030039,113.8,219.77,219.66,2.96411192]
[1757403032135,113.8,219.77,219.59,4.0981]
[1757403032136,113.8,219.77,219.63,2.96411192]
[1757403032336,319.7,219.84,219.66,2.96411192]
[1757403032538,2.96411192,219.82,219.66,2.96411192]
[1757403032738,113.78,219.81,219.66,2.96411192]
[1757403033434,2.96411192,219.81,219.71,0.03165864]
[1757403033636,113.78,219.8,219.71,0.03165864]
[1757403033837,113.78,219.8,219.66,2.96411192]
[1757403034439,2.96411192,219.78,219.61,2.96411192]
[1757403034633,2.96411192,219.78,219.62,3.77431238]
[1757403034832,2.96411192,219.78,219.63,3.77431238]
[1757403035037,2.96411192,219.78,219.61,2.96411192]
[1757403035038,2.96411192,219.78,219.64,3.77431238]
[1757403035233,2.96411192,219.78,219.65,3.77431238]
[1757403035438,2.96411192,219.78,219.61,2.96411192]
[1757403035638,2.96411192,219.78,219.62,3.77500718]
[1757403035837,2.96411192,219.78,219.63,3.77500718]
[1757403036036,2.96411192,219.78,219.64,3.77500718]
[1757403036334,2.96411192,219.78,219.65,3.77500718]
[1757403036642,2.96411192,219.74,219.58,3.82821353]
[1757403036841,2.96411192,219.74,219.59,3.77645456]
[1757403037030,37.82,219.76,219.61,2.96411192]
[1757403037230,37.82,219.76,219.62,3.77645456]
[1757403037433,37.82,219.76,219.63,3.77645456]
[1757403037630,37.82,219.76,219.64,3.77645456]
[1757403037834,37.82,219.76,219.65,3.77645456]
[1757403038034,37.82,219.76,219.61,2.96411192]
[1757403038238,37.82,219.76,219.62,3.77656866]
[1757403038439,37.82,219.76,219.63,3.77656866]
[1757403038739,37.82,219.76,219.64,3.77656866]
[1757403038936,37.82,219.76,219.65,3.77656866]
[1757403039134,2.96411192,219.83,219.68,2.96411192]
[1757403039335,2.96411192,219.83,219.69,3.77545053]
[1757403039639,2.96411192,219.83,219.7,3.77348556]
[1757403039842,2.96411192,219.83,219.68,2.96411192]
[1757403040042,2.96411192,219.83,219.69,3.77377408]
[1757403040341,2.96411192,219.83,219.7,3.77341315]
[1757403040531,2.96411192,219.83,219.66,11.48]
[1757403040732,2.96411192,219.83,219.7,2.96411192]
[1757403040940,2.96411192,219.85,219.7,2.96411192]
[1757403041340,2.96411192,219.86,219.7,2.96411192]
[1757403041540,2.96411192,219.88,219.73,2.96411192]
[1757403042943,2.96411192,219.87,219.73,2.96411192]
[1757403043136,2.96411192,219.87,219.72,2.96411192]
[1757403045745,80.82,219.89,219.72,2.96411192]
[1757403045949,2.96411192,219.88,219.72,2.96411192]
[1757403046637,2.96411192,219.85,219.66,3.44]
[1757403046841,2.96411192,219.85,219.7,2.96411192]
[1757403047037,2.96411192,219.85,219.64,0.1635]
[1757403047242,2.96411192,219.85,219.7,2.96411192]
[1757403047749,2.96411192,219.85,219.68,2.96411192]
[1757403048249,80.82,219.89,219.66,4.12]
[1757403048454,83.78411192,219.89,219.73,2.96411192]
[1757403050147,80.82,219.89,219.73,2.96411192]
[1757403051953,80.82,219.89,219.76,2.96411192]
[1757403054157,80.82,219.89,219.7,2.96411192]
[1757403054362,80.82,219.89,219.76,2.96411192]
[1757403059846,80.82,219.89,219.75,2.96411192]
[1757403060253,2.96411192,219.88,219.7,14.82]
[1757403060559,2.96411192,219.88,219.73,2.96411192]
[1757403061757,83.78411192,219.89,219.73,2.96411192]
[1757403062860,80.82,219.89,219.76,2.96411192]
[1757403065259,80.82,219.89,219.71,21.76]
[1757403065465,80.82,219.89,219.81,2.96411192]
[1757403066655,4.557,219.96,219.81,2.96411192]
[1757403066857,4.557,219.96,219.86,2.96411192]
[1757403069973,4.557,219.96,219.73,3.82821353]
[1757403069974,4.557,219.96,219.83,2.96411192]
[1757403070472,4.557,219.96,219.86,2.96411192]
[1757403070669,4.557,219.96,219.74,3.82821353]
[1757403070871,4.557,219.94,219.75,3.71387735]
[1757403071068,4.557,219.92,219.78,2.96411192]
[1757403071268,7.52111192,219.92,219.78,2.96411192]
[1757403072166,7.52111192,219.92,219.69,3.82821353]
[1757403072373,7.52111192,219.92,219.65,463.70351575]
[1757403072374,1.89576892,219.85,219.76,1.89576892]
[1757403072570,1.89576892,219.83,219.75,1.89576892]
[1757403072769,1.89576892,219.85,219.75,1.89576892]
[1757403073975,1.89576892,219.85,219.77,1.89576892]
[1757403074470,4.557,219.92,219.67,113.25461353]
[1757403074666,4.557,219.92,219.83,1.89576892]
[1757403074869,1.89576892,219.91,219.83,1.89576892]
[1757403075773,4.557,219.9,219.82,1.89576892]
[1757403076173,4.557,219.9,219.86,1.89576892]
[1757403076773,4.557,219.94,219.86,1.89576892]
[1757403078575,4.557,219.96,219.86,1.89576892]
[1757403078776,4.557,219.93,219.73,3.82821353]
[1757403078970,4.557,219.91,219.74,3.67480053]
[1757403079171,4.557,219.91,219.82,1.89576892]
[1757403079374,6.45276892,219.91,219.82,1.89576892]
[1757403079574,4.557,219.91,219.82,1.89576892]
[1757403079778,4.557,219.91,219.84,1.89576892]
[1757403080279,4.557,219.96,219.75,13.44]
[1757403080475,4.557,219.9,219.83,1.89576892]
[1757403081779,4.557,219.9,219.72,7.92381353]
[1757403081980,4.557,219.9,219.84,1.89576892]
[1757403082177,4.557,219.91,219.84,1.89576892]
[1757403083080,4.557,219.91,219.82,1.89576892]
[1757403083981,4.557,219.91,219.75,14.17274]
[1757403084176,4.557,219.89,219.81,1.89576892]
[1757403085179,4.557,219.89,219.75,0.17274]
[1757403085378,4.557,219.89,219.8,1.89576892]
[1757403086485,4.557,219.88,219.82,1.89576892]
[1757403086881,4.557,219.88,219.84,1.89576892]
[1757403087574,4.557,219.88,219.76,13.28]
[1757403087575,4.557,219.91,219.75,0.17274]
[1757403087883,4.557,219.91,219.83,1.89576892]
[1757403088285,4.557,219.89,219.81,1.89576892]
[1757403089182,4.557,219.89,219.75,0.17274]
[1757403089383,4.557,219.89,219.76,3.62918201]
[1757403089688,6.45276892,219.88,219.8,1.89576892]
[1757403090188,4.557,219.88,219.8,1.89576892]
[1757403095191,4.557,219.93,219.75,0.17274]
[1757403095394,1.89576892,219.87,219.79,1.89576892]
[1757403095793,4.557,219.93,219.79,1.89576892]
[1757403096192,1.89576892,219.88,219.79,1.89576892]
[1757403096692,1.89576892,219.84,219.75,2.06850892]
[1757403097499,1.89576892,219.84,219.76,1.89576892]
[1757403098090,6.99767097,219.86,219.76,1.89576892]
[1757403098691,5.10190205,219.86,219.78,1.89576892]
[1757403098894,6.99767097,219.87,219.78,1.89576892]
[1757403099091,1.89576892,219.87,219.78,1.89576892]
[1757403099597,35.6,219.88,219.78,1.89576892]
[1757403099892,1.89576892,219.87,219.78,1.89576892]
[1757403100293,1.89576892,219.87,219.79,1.89576892]
[1757403100795,35.6,219.88,219.75,0.17274]
[1757403100796,1.89576892,219.85,219.75,0.17274]
[1757403100987,1.89576892,219.83,219.75,0.17274]
[1757403102899,1.89576892,219.83,219.75,2.06850892]
[1757403105099,1.89576892,219.83,219.75,0.17274]
[1757403106296,35.6,219.88,219.75,0.17274]
[1757403106501,1.89576892,219.83,219.75,0.17274]
[1757403107700,43.21156468,219.88,219.75,0.17274]
[1757403107899,1.89576892,219.81,219.75,0.17274]
[1757403108898,1.89576892,219.81,219.72,1.89576892]
[1757403109201,1.89576892,219.81,219.65,3.82821353]
[1757403109202,1.89576892,219.81,219.74,1.89576892]
[1757403109403,1.89576892,219.83,219.74,1.89576892]
[1757403111104,1.89576892,219.81,219.65,3.82821353]
[1757403111308,1.89576892,219.81,219.73,1.89576892]
[1757403112509,43.21156468,219.88,219.73,1.89576892]
[1757403112709,1.89576892,219.8,219.73,1.89576892]
[1757403113513,43.21156468,219.88,219.73,1.89576892]
[1757403113811,1.89576892,219.8,219.73,1.89576892]
[1757403114314,1.89576892,219.8,219.66,0.16152]
[1757403114615,1.89576892,219.8,219.72,1.89576892]
[1757403117416,1.89576892,219.81,219.72,1.89576892]
[1757403118214,1.89576892,219.8,219.72,1.89576892]
[1757403118515,1.89576892,219.8,219.66,0.16152]
[1757403118817,1.89576892,219.8,219.7,1.89576892]
[1757403119514,1.89576892,219.78,219.7,1.89576892]
[1757403119710,1.89576892,219.8,219.72,1.89576892]
[1757403120016,1.89576892,219.78,219.69,1.89576892]
[1757403120211,1.89576892,219.78,219.68,1.89576892]
[1757403120913,1.89576892,219.78,219.7,1.89576892]
[1757403121116,1.89576892,219.78,219.71,1.89576892]
[1757403122611,1.89576892,219.79,219.71,1.89576892]
[1757403122806,1.89576892,219.79,219.66,0.16152]
[1757403123012,1.89576892,219.79,219.7,1.89576892]
[1757403123513,9.16,219.81,219.7,1.89576892]
[1757403123710,1.89576892,219.79,219.7,1.89576892]
[1757403124215,1.89576892,219.77,219.7,1.89576892]
[1757403124416,1.89576892,219.77,219.68,1.89576892]
[1757403125920,1.89576892,219.77,219.61,3.82821353]
[1757403126112,1.89576892,219.73,219.62,3.62889348]
[1757403126313,1.89576892,219.71,219.63,3.62889348]
[1757403126618,1.89576892,219.71,219.62,1.89576892]
[1757403126916,1.89576892,219.69,219.62,1.89576892]
[1757403127517,305.98,219.82,219.57,305.9]
[1757403127518,1.89576892,219.78,219.68,1.89576892]
[1757403129314,1.89576892,219.76,219.68,1.89576892]
[1757403130317,1.89576892,219.76,219.6,3.82821353]
[1757403130517,1.89576892,219.76,219.67,1.89576892]
[1757403131816,305.98,219.82,219.67,1.89576892]
[1757403132018,1.89576892,219.76,219.67,1.89576892]
[1757403132221,1.89576892,219.76,219.58,34.44821353]
[1757403132425,2.96453219,219.79,219.63,2.96453219]
[1757403132616,2.96453219,219.79,219.64,3.63483414]
[1757403132819,2.96453219,219.79,219.63,2.96453219]
[1757403133116,2.96453219,219.79,219.64,3.63494647]
[1757403133319,2.96453219,219.79,219.63,2.96453219]
[1757403133516,2.96453219,219.79,219.64,3.63583909]
[1757403133720,2.96453219,219.79,219.63,2.96453219]
[1757403133922,2.96453219,219.79,219.64,3.63583909]
[1757403134122,2.96453219,219.79,219.63,2.96453219]
[1757403134324,2.96453219,219.79,219.64,3.63624707]
[1757403134519,2.96453219,219.79,219.63,2.96453219]
[1757403134721,2.96453219,219.79,219.64,3.63624707]
[1757403135019,2.96453219,219.79,219.63,2.96453219]
[1757403135221,2.96453219,219.79,219.64,3.6360042]
[1757403135422,2.96453219,219.79,219.63,2.96453219]
[1757403135719,2.96453219,219.79,219.64,3.63624652]
[1757403135920,2.96453219,219.79,219.63,2.96453219]
[1757403136123,2.96453219,219.79,219.64,3.63656608]
[1757403136323,2.96453219,219.79,219.63,2.96453219]
[1757403136524,2.96453219,219.79,219.64,3.63705266]
[1757403136725,37.46,219.78,219.63,2.96453219]
[1757403137024,37.46,219.78,219.64,3.63700631]
[1757403137222,37.46,219.78,219.65,3.63700631]
[1757403137422,37.46,219.78,219.63,2.96453219]
[1757403137724,37.46,219.78,219.64,3.63717946]
[1757403137925,37.46,219.78,219.65,3.63717946]
[1757403138125,37.46,219.78,219.66,3.63756175]
[1757403138322,2.96453219,219.7,219.57,3.82821353]
[1757403138531,2.96453219,219.69,219.58,3.63860894]
[1757403138715,2.96453219,219.69,219.53,2.96453219]
[1757403138919,2.96453219,219.69,219.54,3.64129622]
[1757403139116,2.96453219,219.66,219.55,3.64129622]
[1757403139325,2.96453219,219.66,219.5,133.87874347]
[1757403139525,2.96453219,219.66,219.51,3.64118622]
[1757403139822,2.96453219,219.63,219.52,3.64118622]
[1757403140019,10.48,219.69,219.53,3.64118622]
[1757403140331,2.96453219,219.6,219.45,6.79274572]
[1757403140626,2.96453219,219.6,219.46,3.64089092]
[1757403140627,18.26453219,219.6,219.46,3.64089092]
[1757403140827,18.26453219,219.6,219.47,3.64089092]
[1757403141029,18.26453219,219.6,219.48,3.64089092]
[1757403141231,18.26453219,219.6,219.42,3.75677369]
[1757403141420,18.26453219,219.6,219.43,3.63827821]
[1757403141724,18.26453219,219.6,219.44,3.63827821]
[1757403141922,18.26453219,219.6,219.45,3.63827821]
[1757403142127,18.26453219,219.6,219.42,3.75677369]
[1757403142324,15.3,219.6,219.43,3.63504335]
[1757403142525,15.3,219.6,219.44,3.63504335]
[1757403142727,2.96453219,219.57,219.42,0.7922415]
[1757403142926,2.96453219,219.57,219.43,3.63594724]
[1757403143122,2.96453219,219.57,219.42,0.7922415]
[1757403143322,2.96453219,219.58,219.43,3.6321856]
[1757403143528,2.96453219,219.58,219.44,3.6321856]
[1757403143828,2.96453219,219.59,219.42,0.7922415]
[1757403144128,2.96453219,219.59,219.43,3.63116939]
[1757403144328,15.3,219.6,219.44,3.63116939]
[1757403144529,2.96453219,219.58,219.42,0.7922415]
[1757403144729,2.96453219,219.58,219.43,3.62845396]
[1757403144925,2.96453219,219.58,219.44,3.62845396]
[1757403145128,2.96453219,219.58,219.44,2.96453219]
[1757403145323,2.96453219,219.58,219.42,0.7922415]
[1757403145527,15.3,219.6,219.44,2.96453219]
[1757403145726,2.96453219,219.59,219.44,2.96453219]
[1757403146132,101.62,219.61,219.42,0.7922415]
[1757403146330,101.62,219.61,219.47,2.96453219]
[1757403146723,101.62,219.61,219.42,0.7922415]
[1757403146932,101.62,219.61,219.45,2.96453219]
[1757403147130,30.0,219.58,219.45,2.96453219]
[1757403147327,30.0,219.58,219.43,2.96453219]
[1757403147532,2.96453219,219.56,219.42,0.7922415]
[1757403148131,2.96453219,219.56,219.34,7.93101353]
[1757403148132,2.96453219,219.56,219.39,2.96453219]
[1757403148432,2.96453219,219.56,219.32,3.82821353]
[1757403148638,2.96453219,219.5,219.37,0.79319855]
[1757403148825,2.96453219,219.53,219.37,2.96453219]
[1757403149031,26.82453219,219.53,219.37,2.96453219]
[1757403149231,26.82453219,219.53,219.35,0.79333417]
[1757403149529,26.82453219,219.53,219.39,2.96453219]
[1757403150740,2.96453219,219.53,219.39,2.96453219]
[1757403150934,2.96453219,219.53,219.35,0.79333417]
[1757403151129,2.96453219,219.53,219.36,2.96453219]
[1757403153136,2.96453219,219.5,219.35,0.79333417]
[1757403153334,2.96453219,219.47,219.31,2.96453219]